bitfinex-derivatives/quotes_SOLF0:USTF0_20220109
["timestamp","ask_amount","ask_price","bid_price","bid_amount"]
[1641709242748,27.66479,141.14,141.05,51.44507774]
[1641709243852,27.66479,141.14,141.07,7.08466171]
[1641709244050,27.66479,141.14,141.07,16.03666171]
[1641709244549,27.66479,141.14,141.08,27.66479]
[1641709244949,27.66479,141.14,141.08,30.34540483]
[1641709245749,27.66479,141.14,141.09,2.68061483]
[1641709248251,45.2142,141.17,141.09,2.68061483]
[1641709248451,45.2142,141.17,141.09,45.02121483]
[1641709249652,45.2142,141.17,141.1,2.68061483]
[1641709250254,27.66479,141.18,141.1,2.68061483]
[1641709255457,4.0,141.16,141.1,2.68061483]
[1641709255659,5.66781049,141.15,141.1,2.68061483]
[1641709256258,9.66781049,141.15,141.1,2.68061483]
[1641709256858,9.66781049,141.15,141.08,55.32958]
[1641709257860,2.32306936,141.14,141.08,55.32958]
[1641709259259,83.80160342,141.18,141.08,55.32958]
[1641709260061,2.32234318,141.17,141.09,46.94713266]
[1641709260860,2.32234318,141.17,141.1,2.68533266]
[1641709262961,5.66764361,141.16,141.08,55.32958]
[1641709263162,9.66764361,141.16,141.08,55.32958]
[1641709263561,6.32234318,141.15,141.08,55.32958]
[1641709263763,2.32234318,141.15,141.08,55.32958]
[1641709267466,2.32234318,141.15,141.09,2.68777686]
[1641709269669,6.32234318,141.15,141.09,2.68777686]
[1641709269868,4.0,141.11,141.03,1.77]
[1641709270069,7.312,141.11,141.01,44.8798]
[1641709270268,11.312,141.11,141.01,44.8798]
[1641709270470,5.66991627,141.1,141.01,44.8798]
[1641709270871,27.66479,141.09,141.01,44.8798]
[1641709271069,27.66479,141.09,141.02,2.68920615]
[1641709271271,27.66479,141.09,141.02,13.2037744]
[1641709272170,27.66479,141.09,141.02,2.68920615]
[1641709272972,5.66915764,141.12,141.02,14.51120615]
[1641709273174,43.6793,141.13,141.02,14.51120615]
[1641709273373,14.81516264,141.14,141.03,4.0]
[1641709273572,14.81516264,141.14,141.02,16.1840411]
[1641709273872,12.46832124,141.16,141.03,6.68920615]
[1641709274074,56.15662124,141.16,141.04,4.0]
[1641709274272,49.35565235,141.16,141.05,43.8339]
[1641709274473,49.35565235,141.16,141.05,50.5639]
[1641709274772,71.35309,141.16,141.07,27.66479]
[1641709274975,2.32279217,141.15,141.07,27.66479]
[1641709275675,71.35309,141.16,141.07,27.66479]
[1641709275875,71.35309,141.16,141.08,2.68920615]
[1641709276075,71.35309,141.16,141.08,12.15220615]
[1641709276677,2.3226426,141.15,141.08,9.463]
[1641709279281,71.35309,141.16,141.09,2.6864533]
[1641709279481,27.66479,141.16,141.09,2.6864533]
[1641709280182,31.66479,141.16,141.09,2.6864533]
[1641709280581,27.66479,141.16,141.09,2.6864533]
[1641709280983,2.32457995,141.15,141.08,2.6864533]
[1641709281882,27.66479,141.16,141.08,2.6864533]
[1641709282082,27.66479,141.16,141.08,9.0774533]
[1641709283085,27.66479,141.16,141.09,2.6864533]
[1641709283885,27.66479,141.16,141.08,2.6864533]
[1641709284086,35.72679,141.16,141.08,2.6864533]
[1641709287688,35.72679,141.16,141.09,4.0]
[1641709287890,8.062,141.16,141.09,4.0]
[1641709288089,10.58,141.17,141.09,9.66985593]
[1641709288289,10.58,141.17,141.09,55.94295593]
[1641709288890,10.58,141.17,141.1,2.6864533]
[1641709289090,10.58,141.17,141.1,30.3512433]
[1641709289692,10.58,141.17,141.11,2.6864533]
[1641709290692,16.24712412,141.17,141.11,2.6864533]
[1641709291196,25.91425677,141.17,141.11,2.6864533]
[1641709291393,21.91425677,141.17,141.1,2.6864533]
[1641709291593,28.69725677,141.17,141.1,2.6864533]
[1641709291893,32.69725677,141.17,141.1,2.6864533]
[1641709294895,28.69725677,141.17,141.1,2.6864533]
[1641709295396,32.69725677,141.17,141.1,2.6864533]
[1641709296197,5.66795627,141.15,141.1,2.6864533]
[1641709297000,5.66832435,141.14,141.1,2.6864533]
[1641709297200,27.66479,141.13,141.1,2.6864533]
[1641709297901,27.66479,141.13,141.09,44.5031]
[1641709298202,27.66479,141.13,141.05,27.66479]
[1641709298401,27.66479,141.13,141.05,71.14589]
[1641709298601,5.66796266,141.15,141.05,71.14589]
[1641709298801,5.66796266,141.15,141.06,2.68636748]
[1641709299002,32.19550428,141.17,141.06,2.68636748]
[1641709299902,5.66737005,141.16,141.06,2.68636748]
[1641709300101,5.66737005,141.16,141.06,13.18837943]
[1641709301002,9.66737005,141.16,141.06,13.18837943]
[1641709301202,27.66479,141.15,141.06,13.18837943]
[1641709307810,2.32806509,141.14,141.06,13.18837943]
[1641709308109,10.74106509,141.14,141.06,13.18837943]
[1641709308709,8.413,141.14,141.06,13.18837943]
[1641709309410,8.413,141.14,141.06,22.85947702]
[1641709309612,27.66479,141.15,141.06,18.85947702]
[1641709309810,27.66479,141.15,141.06,26.84947702]
[1641709310210,27.66479,141.15,141.06,30.84947702]
[1641709310411,27.66479,141.15,141.07,4.0]
[1641709310612,14.81516264,141.16,141.08,4.0]
[1641709311012,14.81516264,141.16,141.09,5.67002689]
[1641709311315,14.81516264,141.16,141.11,27.66479]
[1641709311512,10.58,141.17,141.11,27.66479]
[1641709312313,10.58,141.17,141.12,2.68636748]
[1641709313214,2.3279582,141.16,141.12,2.68636748]
[1641709314015,2.3279582,141.16,141.11,2.68636748]
[1641709314215,10.8519582,141.16,141.11,2.68636748]
[1641709314815,2.3279582,141.15,141.11,2.68636748]
[1641709317319,2.3279582,141.16,141.11,2.68636748]
[1641709321721,27.66479,141.15,141.11,2.68636748]
[1641709321921,36.90679,141.15,141.11,2.68636748]
[1641709322922,2.3279582,141.14,141.09,46.99216748]
[1641709323823,2.3279582,141.14,141.1,2.68636748]
[1641709328530,2.3279582,141.14,141.09,2.68636748]
[1641709328730,7.9961497,141.14,141.09,2.68636748]
[1641709329331,2.3279582,141.13,141.07,2.68636748]
[1641709329831,27.66479,141.12,141.07,2.68636748]
[1641709330032,35.77579,141.12,141.07,2.68636748]
[1641709330634,41.44474103,141.12,141.07,2.68636748]
[1641709331233,47.11407189,141.12,141.07,2.68636748]
[1641709331634,41.44512086,141.12,141.07,2.68636748]
[1641709331833,69.10991086,141.12,141.07,2.68636748]
[1641709332435,69.10991086,141.12,141.05,13.2201758]
[1641709333240,63.44058,141.12,141.05,13.2201758]
[1641709340544,63.44058,141.12,141.05,2.68636748]
[1641709341148,4.0,141.1,141.05,2.68636748]
[1641709341547,4.0,141.07,141.05,2.68636748]
[1641709341848,59.32958,141.06,140.97,44.4644]
[1641709342047,59.32958,141.06,140.97,44.9772]
[1641709342048,65.00118272,141.06,140.97,44.9772]
[1641709343949,27.66479,141.03,140.98,10.5095148]
[1641709344149,33.40079,141.03,140.98,10.5095148]
[1641709344349,5.736,141.03,140.98,10.5095148]
[1641709344853,5.736,141.03,140.97,44.9772]
[1641709345852,5.736,141.03,140.98,10.50065809]
[1641709347354,27.66479,141.06,141.0,4.0]
[1641709347653,27.66479,141.06,140.98,5.772]
[1641709347854,27.66479,141.08,140.98,1.772]
[1641709348055,54.20496264,141.1,141.0,27.66479]
[1641709348252,14.81516264,141.1,141.01,41.9891]
[1641709348453,6.80321225,141.11,141.02,4.0]
[1641709348855,42.47995264,141.13,141.02,4.0]
[1641709349054,42.47995264,141.13,141.01,45.9891]
[1641709349255,27.66479,141.13,141.02,10.49462987]
[1641709349853,33.33351174,141.13,141.02,10.49462987]
[1641709350055,33.33351174,141.13,141.03,27.66479]
[1641709350554,37.33351174,141.13,141.03,27.66479]
[1641709350955,33.33351174,141.13,141.03,27.66479]
[1641709353459,33.33351174,141.13,141.03,38.15941987]
[1641709355062,33.33351174,141.13,141.03,27.66479]
[1641709355965,41.88751174,141.13,141.03,27.66479]
[1641709357064,41.88751174,141.13,141.03,39.53079]
[1641709357265,33.33351174,141.13,141.03,35.53079]
[1641709357665,33.33351174,141.13,141.03,37.30279]
[1641709357865,33.33351174,141.13,141.03,44.38971109]
[1641709358067,33.33351174,141.13,141.06,27.66479]
[1641709367883,27.66479,141.13,141.06,27.66479]
[1641709371487,33.33354698,141.13,141.06,27.66479]
[1641709371688,4.0,141.1,141.03,34.75171109]
[1641709371889,4.0,141.09,141.02,39.6617]
[1641709372091,9.67032097,141.09,141.0,41.9678]
[1641709372290,37.33511097,141.09,141.0,41.9072]
[1641709373691,37.33511097,141.09,141.01,10.50648404]
[1641709374092,6.266,141.1,141.02,4.0]
[1641709374292,6.266,141.1,141.04,27.66479]
[1641709374493,49.28223553,141.13,141.04,27.66479]
[1641709374693,53.28223553,141.13,141.04,27.66479]
[1641709375094,49.28223553,141.13,141.04,27.66479]
[1641709375294,4.0,141.12,141.04,27.66479]
[1641709375796,62.29323553,141.13,141.01,10.50648404]
[1641709375997,58.29323553,141.13,141.01,10.50648404]
[1641709376195,58.29323553,141.13,141.04,27.66479]
[1641709376900,62.29323553,141.13,141.04,27.66479]
[1641709377099,14.81516264,141.12,141.04,27.66479]
[1641709377699,14.81516264,141.12,141.02,10.50648404]
[1641709378100,14.81516264,141.12,141.01,15.61971755]
[1641709378101,62.29323553,141.13,141.01,26.12620159]
[1641709378300,62.29323553,141.13,141.02,27.66479]
[1641709379004,14.81516264,141.12,141.02,27.66479]
[1641709380601,14.81516264,141.12,141.03,4.0]
[1641709380802,14.81516264,141.12,141.03,11.546]
[1641709381203,14.81516264,141.12,141.03,22.05248404]
[1641709381605,14.81516264,141.12,141.03,18.05248404]
[1641709381803,14.81516264,141.12,141.03,10.50648404]
[1641709382203,2.32972284,141.12,141.04,2.693412]
[1641709382403,2.32972284,141.12,141.04,41.627912]
[1641709383009,2.32972284,141.12,141.05,2.693412]
[1641709384508,4.0,141.11,141.05,2.693412]
[1641709384710,13.032,141.11,141.05,2.693412]
[1641709385110,5.66985445,141.1,141.05,2.693412]
[1641709385611,5.66985445,141.1,141.03,2.693412]
[1641709385810,7.99957729,141.1,141.03,13.2248101]
[1641709386310,35.66436729,141.1,141.03,13.2248101]
[1641709386812,29.99451284,141.1,141.03,13.2248101]
[1641709387011,2.32972284,141.09,141.03,2.693412]
[1641709387812,27.66479,141.1,141.03,2.693412]
[1641709392618,27.66479,141.1,141.03,13.21888803]
[1641709403230,33.334541,141.1,141.03,13.21888803]
[1641709404029,2.33209743,141.09,141.03,13.21888803]
[1641709405332,8.00236646,141.09,141.03,13.21888803]
[1641709405532,17.49236646,141.09,141.03,13.21888803]
[1641709406334,15.16026903,141.09,141.03,13.21888803]
[1641709412741,9.49,141.09,141.03,13.21888803]
[1641709412940,27.66479,141.1,141.03,13.21888803]
[1641709413141,27.66479,141.1,141.05,27.66479]
[1641709413741,27.66479,141.1,141.06,2.693412]
[1641709415949,2.33249769,141.09,141.03,13.21888803]
[1641709416150,9.10449769,141.09,141.03,13.21888803]
[1641709416649,4.0,141.08,141.03,13.21888803]
[1641709416850,5.67103363,141.07,141.03,13.21888803]
[1641709417354,27.66479,141.04,140.98,39.0513]
[1641709417649,36.14479,141.04,140.98,39.0513]
[1641709421950,4.0,141.03,140.95,27.66479]
[1641709422150,5.67296312,141.02,140.94,39.1054]
[1641709423153,27.66479,140.99,140.94,39.1054]
[1641709423351,33.70779,140.99,140.94,39.1054]
[1641709426861,33.70779,140.99,140.91,49.38160161]
[1641709427061,39.38206687,140.99,140.91,7.09270161]
[1641709429263,33.70779,140.99,140.91,7.09270161]
[1641709432667,33.70779,140.99,140.9,41.1956]
[1641709433267,4.0,140.96,140.9,41.1956]
[1641709433468,38.15879,140.96,140.87,27.66479]
[1641709433667,4.0,140.95,140.86,38.7154]
[1641709433871,5.6763831,140.94,140.86,38.7154]
[1641709434069,5.6763831,140.94,140.86,40.4894]
[1641709434669,5.6763831,140.94,140.86,1.774]
[1641709434868,4.0,140.93,140.85,27.66479]
[1641709435068,9.67703266,140.92,140.85,27.66479]
[1641709435470,27.66479,140.91,140.85,27.66479]
[1641709436070,27.66479,140.91,140.83,37.6631]
[1641709436369,16.77938461,140.9,140.78,59.48181374]
[1641709436570,5.67887303,140.88,140.79,38.0112]
[1641709437472,27.66479,140.87,140.79,38.0112]
[1641709437670,35.24979,140.87,140.79,38.0112]
[1641709439673,62.91458,140.87,140.79,38.0112]
[1641709441289,62.91458,140.87,140.79,42.0112]
[1641709442577,62.91458,140.87,140.79,38.0112]
[1641709443577,7.585,140.87,140.82,4.0]
[1641709443777,27.66479,140.92,140.82,10.028]
[1641709443977,27.66479,140.92,140.82,11.802]
[1641709444580,6.81140467,140.95,140.84,4.0]
[1641709444778,5.67483168,140.98,140.84,38.4892]
[1641709444978,9.67483168,140.98,140.84,40.2632]
[1641709445279,5.67592849,140.95,140.84,40.2632]
[1641709445478,5.67592849,140.95,140.84,38.4892]
[1641709445678,27.66479,140.94,140.86,27.66479]
[1641709446479,27.66479,140.97,140.86,27.66479]
[1641709446679,27.66479,140.97,140.86,33.83079]
[1641709446879,31.66479,140.97,140.86,33.83079]
[1641709447581,27.66479,140.97,140.86,33.83079]
[1641709447781,55.32958,140.97,140.86,33.83079]
[1641709448181,59.32958,140.97,140.86,33.83079]
[1641709448381,5.67562656,140.96,140.84,38.4892]
[1641709449082,9.67562656,140.96,140.84,38.4892]
[1641709449785,27.66479,140.93,140.84,66.15399]
[1641709450683,31.66479,140.93,140.84,66.15399]
[1641709450884,5.67698089,140.92,140.84,38.4892]
[1641709451286,9.67698089,140.92,140.84,38.4892]
[1641709451487,4.0,140.91,140.81,65.33049]
[1641709451687,5.67820694,140.89,140.81,37.6657]
[1641709451888,40.36699694,140.89,140.8,27.66479]
[1641709453589,40.36699694,140.89,140.8,38.13849417]
[1641709454090,40.36699694,140.89,140.8,42.13849417]
[1641709454290,34.68879,140.89,140.8,38.13849417]
[1641709457793,34.68879,140.89,140.81,2.68085574]
[1641709459494,40.36709,140.89,140.81,2.68085574]
[1641709463898,40.36709,140.89,140.81,6.68085574]
[1641709464099,7.024,140.89,140.83,27.66479]
[1641709464299,7.10050769,140.92,140.83,27.66479]
[1641709464899,7.10050769,140.92,140.84,2.68085574]
[1641709465704,33.34164834,140.93,140.84,52.51215574]
[1641709465705,5.67685834,140.93,140.84,52.51215574]
[1641709465904,6.81184402,140.94,140.84,52.51215574]
[1641709466103,21.91390616,140.95,140.88,27.66479]
[1641709466503,14.81516264,140.95,140.88,34.22279]
[1641709467104,42.47995264,140.98,140.88,34.22279]
[1641709467905,42.47995264,140.98,140.88,27.66479]
[1641709468106,27.66479,140.98,140.89,13.15455991]
[1641709468607,27.66479,140.98,140.89,50.10785991]
[1641709469107,31.66479,140.98,140.89,39.63415574]
[1641709469307,37.33974544,140.98,140.89,39.63415574]
[1641709469510,4.0,140.96,140.89,39.63415574]
[1641709469711,13.92076479,140.96,140.89,2.68085574]
[1641709470109,27.66479,140.94,140.9,2.68085574]
[1641709470911,27.66479,140.94,140.88,2.68085574]
[1641709471109,13.92076479,140.96,140.88,2.68085574]
[1641709471609,13.92076479,140.96,140.88,13.19011436]
[1641709472111,27.66479,140.95,140.88,13.19011436]
[1641709472510,27.66479,140.95,140.88,2.68085574]
[1641709473712,27.66479,140.95,140.88,13.18828553]
[1641709478316,27.66479,140.95,140.88,2.68085574]
[1641709479016,31.66479,140.95,140.88,2.68085574]
[1641709479216,37.34086854,140.95,140.88,2.68085574]
[1641709480218,27.66479,140.92,140.88,2.68085574]
[1641709480418,35.67479,140.92,140.88,2.68085574]
[1641709480819,4.0,140.91,140.81,118.43879]
[1641709481019,5.67837765,140.89,140.82,38.1709]
[1641709481219,12.41037765,140.89,140.82,38.1709]
[1641709481918,6.732,140.89,140.82,38.1709]
[1641709482319,34.39679,140.89,140.82,65.83569]
[1641709483221,34.39679,140.89,140.83,10.50969796]
[1641709484521,6.732,140.89,140.83,10.50969796]
[1641709484723,35.67479,140.92,140.83,10.50969796]
[1641709486828,4.0,140.87,140.83,10.50969796]
[1641709487027,4.0,140.87,140.83,6.59249796]
[1641709487028,15.47012539,140.87,140.83,6.59249796]
[1641709487227,11.47012539,140.87,140.83,6.59249796]
[1641709487429,4.0,140.86,140.77,59.48181374]
[1641709487627,5.68022112,140.84,140.77,59.48181374]
[1641709487827,12.08822112,140.84,140.75,36.5263]
[1641709488028,6.408,140.84,140.75,36.5263]
[1641709488227,34.07279,140.84,140.75,36.5263]
[1641709496935,34.07279,140.84,140.75,40.5263]
[1641709496936,6.408,140.84,140.75,40.5263]
[1641709497233,37.0835,140.85,140.75,36.5263]
[1641709497433,7.963,140.85,140.75,36.5263]
[1641709498435,7.963,140.85,140.76,27.66479]
[1641709499237,5.68035667,140.84,140.76,27.66479]
[1641709499638,5.68035667,140.84,140.75,36.5263]
[1641709500137,5.68082532,140.83,140.75,36.5263]
[1641709500437,27.66479,140.77,140.71,38.6141]
[1641709500637,35.49179,140.77,140.7,41.03328172]
[1641709502640,7.827,140.77,140.7,41.03328172]
[1641709502839,36.9564,140.82,140.7,41.03328172]
[1641709503039,6.81696345,140.83,140.73,4.0]
[1641709503240,33.7623,140.85,140.74,11.10151617]
[1641709503439,33.7623,140.85,140.75,33.8431]
[1641709504643,61.42709,140.85,140.76,27.66479]
[1641709506243,67.1072327,140.85,140.76,27.66479]
[1641709506445,71.1072327,140.85,140.76,27.66479]
[1641709506842,67.1072327,140.85,140.76,27.66479]
[1641709508046,67.1072327,140.85,140.76,38.15961018]
[1641709510549,75.5102327,140.85,140.76,38.15961018]
[1641709512853,75.50996671,140.85,140.76,38.15961018]
[1641709515454,67.10696671,140.85,140.76,38.15961018]
[1641709515655,33.34466671,140.85,140.76,38.15961018]
[1641709515856,27.66479,140.87,140.76,38.15961018]
[1641709516055,27.66479,140.87,140.78,7.09949949]
[1641709516256,27.66479,140.87,140.79,33.9423]
[1641709516657,27.66479,140.87,140.8,27.66479]
[1641709516856,27.66479,140.87,140.8,10.49482018]
[1641709518157,27.66479,140.87,140.8,17.73682018]
[1641709518656,27.66479,140.87,140.8,45.40161018]
[1641709518861,27.66479,140.87,140.8,61.03999044]
[1641709519862,27.66479,140.87,140.81,10.49482018]
[1641709520764,27.66479,140.87,140.8,53.79799044]
[1641709521568,27.66479,140.87,140.81,2.69296806]
[1641709531678,27.66479,140.87,140.81,11.26496806]
[1641709532078,5.67885299,140.88,140.81,11.26496806]
[1641709532779,5.67885299,140.88,140.82,2.69296806]
[1641709533483,36.8435,140.9,140.82,2.69296806]
[1641709534183,33.34221888,140.91,140.82,2.69296806]
[1641709534483,27.66479,140.91,140.83,35.3043]
[1641709535984,27.66479,140.91,140.84,2.69296806]
[1641709536984,27.66479,140.91,140.84,13.21769451]
[1641709537185,27.66479,140.91,140.84,40.88248451]
[1641709537786,27.66479,140.91,140.85,2.69296806]
[1641709540389,5.67789424,140.9,140.84,2.69296806]
[1641709544098,35.40179,140.91,140.84,2.69296806]
[1641709545498,41.07936617,140.91,140.84,2.69296806]
[1641709545699,41.07936617,140.91,140.84,13.23787362]
[1641709546299,2.33595015,140.9,140.84,13.23787362]
[1641709552804,33.34236617,140.91,140.84,13.23787362]
[1641709553207,27.66479,140.91,140.84,13.23787362]
[1641709554107,27.66479,140.91,140.85,4.0]
[1641709554308,27.66479,140.91,140.85,8.515]
[1641709555807,27.66479,140.91,140.86,2.69296806]
[1641709560215,36.5711,140.96,140.86,2.69296806]
[1641709560415,36.5711,140.96,140.87,32.3296]
[1641709560815,36.5711,140.96,140.87,36.3296]
[1641709561018,14.81516264,140.98,140.88,11.09421112]
[1641709561216,14.81516264,140.98,140.93,27.66479]
[1641709561417,14.81516264,140.98,140.93,36.54679]
[1641709561816,47.26666264,141.0,140.93,36.54679]
[1641709562919,32.4515,141.0,140.94,2.69296806]
[1641709563821,31.66479,141.02,140.94,2.69296806]
[1641709564220,27.66479,141.02,140.94,2.69296806]
[1641709564419,27.66479,141.02,140.93,27.66479]
[1641709564620,2.32770681,141.01,140.93,27.66479]
[1641709568324,2.32770681,141.01,140.92,34.9738]
[1641709569326,2.32770681,141.01,140.93,27.66479]
[1641709569526,2.32770681,141.01,140.93,36.18279]
[1641709571231,4.0,141.02,140.93,36.18279]
[1641709571430,14.81516264,141.04,140.94,11.09144417]
[1641709571831,14.81516264,141.04,140.94,16.76745245]
[1641709572030,14.81516264,141.04,140.94,12.76745245]
[1641709572331,34.4711692,141.05,140.95,2.68175606]
[1641709572629,34.4711692,141.05,140.96,35.4588]
[1641709573332,34.4711692,141.05,140.97,27.66479]
[1641709573730,6.8063792,141.05,140.97,27.66479]
[1641709573931,6.8063792,141.05,140.97,31.66479]
[1641709574130,6.8063792,141.05,140.97,38.75472584]
[1641709574331,14.81516264,141.08,140.99,4.0]
[1641709574532,14.81516264,141.08,140.99,8.451]
[1641709574731,14.81516264,141.08,141.0,4.0]
[1641709575131,24.61049663,141.13,141.0,11.08817692]
[1641709575332,24.61049663,141.13,141.01,37.92739928]
[1641709575531,24.61049663,141.13,141.06,27.66479]
[1641709575731,14.81516264,141.13,141.06,36.19179]
[1641709576532,27.66479,141.15,141.06,36.19179]
[1641709578038,27.66479,141.15,141.06,27.66479]
[1641709580440,59.95339,141.17,141.06,35.40079]
[1641709581141,59.95339,141.17,141.07,33.8396]
[1641709581541,59.95339,141.17,141.09,27.66479]
[1641709581842,27.66479,141.17,141.09,36.20079]
[1641709582142,31.66479,141.17,141.09,36.20079]
[1641709582543,31.66479,141.17,141.09,8.536]
[1641709582742,9.66733884,141.16,141.07,33.8396]
[1641709582942,5.66733884,141.16,141.07,33.8396]
[1641709583142,9.66733884,141.16,141.07,33.8396]
[1641709583341,5.6676145,141.16,141.07,33.8396]
[1641709583544,5.6676145,141.16,141.09,27.66479]
[1641709587447,5.6676145,141.16,141.07,33.8396]
[1641709587949,4.0,141.15,141.07,33.8396]
[1641709588148,5.66816375,141.14,141.07,33.8396]
[1641709588348,12.86816375,141.14,141.07,33.8396]
[1641709591648,7.2,141.14,141.07,33.8396]
[1641709591849,70.14474264,141.17,141.07,33.8396]
[1641709592052,55.32958,141.17,141.07,33.8396]
[1641709592452,5.66770765,141.16,141.07,33.8396]
[1641709592650,13.16670765,141.16,141.07,33.8396]
[1641709592850,19.47915242,141.16,141.07,33.8396]
[1641709593152,15.47915242,141.16,141.07,33.8396]
[1641709593352,19.47915242,141.16,141.07,33.8396]
[1641709593552,2.31244477,141.15,141.07,33.8396]
[1641709593752,27.66479,141.14,141.07,33.8396]
[1641709596554,47.73720765,141.16,141.07,33.8396]
[1641709596755,62.55237029,141.16,141.07,33.8396]
[1641709597558,2.31744296,141.15,141.07,33.8396]
[1641709597759,2.31744296,141.15,141.09,27.66479]
[1641709598158,40.23820765,141.16,141.09,27.66479]
[1641709598558,5.66770765,141.16,141.09,27.66479]
[1641709600164,2.32094909,141.15,141.09,27.66479]
[1641709600363,2.32094909,141.15,141.09,31.66479]
[1641709600562,2.32094909,141.15,141.1,4.0]
[1641709600763,2.32094909,141.15,141.1,10.83]
[1641709601369,2.32094909,141.17,141.11,2.68499283]
[1641709602366,2.32094909,141.17,141.09,27.66479]
[1641709602565,23.10616264,141.17,141.09,27.66479]
[1641709603666,2.32094909,141.16,141.09,27.66479]
[1641709604266,17.13611173,141.16,141.09,27.66479]
[1641709605272,17.13611173,141.16,141.1,2.68964766]
[1641709606273,17.13611173,141.16,141.07,33.8396]
[1641709606274,17.13611173,141.16,141.09,27.66479]
[1641709610181,14.81516264,141.15,141.09,27.66479]
[1641709612985,14.81516264,141.14,141.09,27.66479]
[1641709613184,23.68416264,141.14,141.09,27.66479]
[1641709613786,2.32094909,141.13,141.09,27.66479]
[1641709614585,14.81516264,141.14,141.09,27.66479]
[1641709614786,14.81516264,141.15,141.09,27.66479]
[1641709617288,14.81516264,141.15,141.07,33.8396]
[1641709617586,22.99616264,141.15,141.07,33.8396]
[1641709617786,22.99616264,141.15,141.08,2.689327]
[1641709618388,22.99616264,141.15,141.09,27.66479]
[1641709618787,2.32094909,141.14,141.09,27.66479]
[1641709619188,2.32094909,141.14,141.1,4.0]
[1641709619387,9.55109788,141.16,141.12,4.0]
[1641709619589,9.788e-05,141.16,141.1,16.77941158]
[1641709619788,39.71861416,141.18,141.1,18.54941158]
[1641709619989,39.71861416,141.2,141.11,4.0]
[1641709620389,39.71861416,141.2,141.13,27.66479]
[1641709620991,34.46329546,141.21,141.13,27.66479]
[1641709622593,6.79850546,141.21,141.13,27.66479]
[1641709623296,27.66479,141.23,141.13,31.66479]
[1641709623500,27.66479,141.23,141.13,33.43479]
[1641709623696,27.66479,141.23,141.13,29.43479]
[1641709624596,27.66479,141.23,141.13,27.66479]
[1641709626398,27.66479,141.23,141.13,31.66479]
[1641709626598,27.66479,141.23,141.13,27.66479]
[1641709626898,27.66479,141.23,141.13,31.66479]
[1641709627599,27.66479,141.23,141.14,4.0]
[1641709627799,27.66479,141.23,141.14,12.641]
[1641709628001,35.82066743,141.25,141.15,4.0]
[1641709628200,27.66479,141.25,141.16,34.5618]
[1641709628399,39.71861416,141.27,141.16,34.5618]
[1641709628602,67.38340416,141.27,141.2,27.66479]
[1641709628800,67.38340416,141.27,141.2,36.34479]
[1641709629900,27.66479,141.27,141.2,36.34479]
[1641709630100,27.66479,141.27,141.2,8.68]
[1641709630302,27.66479,141.27,141.17,5.66690953]
[1641709630501,27.66479,141.27,141.18,27.66479]
[1641709635105,27.66479,141.27,141.18,31.66479]
[1641709635505,34.7466922,141.29,141.18,39.10104695]
[1641709636105,34.7466922,141.29,141.19,4.0]
[1641709636308,20.11933924,141.28,141.2,34.8584]
[1641709637309,20.11933924,141.28,141.21,7.0778922]
[1641709637508,20.11933924,141.28,141.21,19.7108922]
[1641709637908,39.71861416,141.31,141.21,19.7108922]
[1641709638108,39.71861416,141.33,141.21,19.7108922]
[1641709638308,39.71861416,141.33,141.21,21.4788922]
[1641709638608,27.66479,141.32,141.23,27.66479]
[1641709638810,34.56279,141.32,141.23,27.66479]
[1641709639908,27.66479,141.32,141.23,27.66479]
[1641709647213,27.66479,141.32,141.23,39.28179]
[1641709648216,38.61988192,141.34,141.23,39.28179]
[1641709648416,38.61988192,141.34,141.24,35.4098]
[1641709648818,38.61988192,141.34,141.26,27.66479]
[1641709649924,14.98254953,141.33,141.26,27.66479]
[1641709651621,22.76654953,141.33,141.26,27.66479]
[1641709651823,22.76654953,141.33,141.24,35.4098]
[1641709652123,5.66099526,141.32,141.24,35.4098]
[1641709652821,27.66479,141.31,141.24,35.4098]
[1641709655229,14.98254953,141.32,141.24,35.4098]
[1641709655727,14.98254953,141.33,141.24,35.4098]
[1641709656732,14.98254953,141.32,141.24,35.4098]
[1641709657430,14.98254953,141.33,141.24,35.4098]
[1641709658231,14.98254953,141.32,141.24,35.4098]
[1641709660231,23.09354953,141.32,141.24,35.4098]